{"text_format":"3","workbook":"xlsx","n_sheets":7,"sheets":["Esmaspäev","Teisipäev","Kolmapäev","Neljapäev","Reede","Laupäev","Pühapäev"],"not_rendered":{"defined_names":24},"read":"whole","date_system":"1900"}

{"sheet":"Esmaspäev","index":0,"n_rows":10,"n_cols":13,"rows_kept":10,"merged":[[1,1,2,1],[1,2,1,10],[1,11,1,12],[2,2,2,10],[2,11,2,12]]}
[null,"TÖÖGRAAFIK"]
[null,"ESMASPÄEV","Nädal: ",{"$nulls":8},"KUUPÄEV"]
[null,null,"Osakonna nimi: ",{"$nulls":8},"OSAKOND"]
[null,"Töötaja nimi","7:00","8:00","9:00","10:00","11:00","12:00","13:00","14:00","15:00","Haige?","KOKKU"]
[null,"Lilli A.","Ülemus","Ülemus","Ülemus","Ülemus","Ülemus","Ülemus","Ülemus","Ülemus","Ülemus",null,{"$f":"IFERROR(COUNTIF(Esmaspäev[[#This Row],[7:00]:[15:00]],\"*\"),\"\")","v":9}]
[null,"Georg K.",null,"Kassapidaja","Kassapidaja","Kassapidaja","Kassapidaja",{"$nulls":5},{"$f":"IFERROR(COUNTIF(Esmaspäev[[#This Row],[7:00]:[15:00]],\"*\"),\"\")","v":4}]
[null,"Jaan V.",null,"Administraator","Administraator","Administraator","Administraator ","Administraator","Administraator","Administraator",null,null,{"$f":"IFERROR(COUNTIF(Esmaspäev[[#This Row],[7:00]:[15:00]],\"*\"),\"\")","v":7}]
[null,"Peep V.",null,"Administraator","Administraator","Administraator","Administraator ","Administraator","Administraator","Administraator",null,null,{"$f":"IFERROR(COUNTIF(Esmaspäev[[#This Row],[7:00]:[15:00]],\"*\"),\"\")","v":7}]
[null,"Rauno L.",{"$nulls":10},{"$f":"IFERROR(COUNTIF(Esmaspäev[[#This Row],[7:00]:[15:00]],\"*\"),\"\")","v":0}]
[null,"Liidia P.",{"$nulls":5},"Kassapidaja","Kassapidaja","Kassapidaja","Kassapidaja",null,{"$f":"IFERROR(COUNTIF(Esmaspäev[[#This Row],[7:00]:[15:00]],\"*\"),\"\")","v":4}]

{"sheet":"Teisipäev","index":1,"n_rows":10,"n_cols":13,"rows_kept":10,"merged":[[1,1,2,1],[1,2,1,10],[1,11,1,12],[2,2,2,10],[2,11,2,12]]}
[null,{"$f":"SHIFT_SCHEDULE_Title","v":"TÖÖGRAAFIK"}]
[null,"TEISIPÄEV","Nädal: ",{"$nulls":8},{"$f":"KUUPÄEV","v":"KUUPÄEV"}]
[null,null,"Osakonna nimi: ",{"$nulls":8},{"$f":"OSAKOND","v":"OSAKOND"}]
[null,"Töötaja nimi","7:00","8:00","9:00","10:00","11:00","12:00","13:00","14:00","15:00","Haige?","KOKKU"]
[null,"Lilli A.","Ülemus","Ülemus","Ülemus","Ülemus","Ülemus","Ülemus","Ülemus","Ülemus","Ülemus",null,{"$f":"IFERROR(COUNTIF(Teisipäev[[#This Row],[7:00]:[15:00]],\"*\"),\"\")","v":9}]
[null,"Georg K.",null,"Kassapidaja","Kassapidaja","Kassapidaja","Kassapidaja",{"$nulls":5},{"$f":"IFERROR(COUNTIF(Teisipäev[[#This Row],[7:00]:[15:00]],\"*\"),\"\")","v":4}]
[null,"Jaan V.",null,"Administraator","Administraator","Administraator","Administraator ","Administraator","Administraator","Administraator",null,null,{"$f":"IFERROR(COUNTIF(Teisipäev[[#This Row],[7:00]:[15:00]],\"*\"),\"\")","v":7}]
[null,"Peep V.",null,"Administraator","Administraator","Administraator","Administraator ","Administraator","Administraator","Administraator",null,null,{"$f":"IFERROR(COUNTIF(Teisipäev[[#This Row],[7:00]:[15:00]],\"*\"),\"\")","v":7}]
[null,"Rauno L.",{"$nulls":9},"Haige",{"$f":"IFERROR(COUNTIF(Teisipäev[[#This Row],[7:00]:[15:00]],\"*\"),\"\")","v":0}]
[null,"Liidia P.",{"$nulls":5},"Kassapidaja","Kassapidaja","Kassapidaja","Kassapidaja",null,{"$f":"IFERROR(COUNTIF(Teisipäev[[#This Row],[7:00]:[15:00]],\"*\"),\"\")","v":4}]

{"sheet":"Kolmapäev","index":2,"n_rows":10,"n_cols":13,"rows_kept":10,"merged":[[1,1,2,1],[1,2,1,10],[1,11,1,12],[2,2,2,10],[2,11,2,12]]}
[null,{"$f":"SHIFT_SCHEDULE_Title","v":"TÖÖGRAAFIK"}]
[null,"KOLMAPÄEV","Nädal: ",{"$nulls":8},{"$f":"KUUPÄEV","v":"KUUPÄEV"}]
[null,null,"Osakonna nimi: ",{"$nulls":8},{"$f":"OSAKOND","v":"OSAKOND"}]
[null,"Töötaja nimi","7:00","8:00","9:00","10:00","11:00","12:00","13:00","14:00","15:00","Haige?","KOKKU"]
[null,"Lilli A.","Ülemus","Ülemus","Ülemus","Ülemus","Ülemus","Ülemus","Ülemus","Ülemus","Ülemus",null,{"$f":"IFERROR(COUNTIF(Kolmapäev[[#This Row],[7:00]:[15:00]],\"*\"),\"\")","v":9}]
[null,"Georg K.",null,"Kassapidaja","Kassapidaja","Kassapidaja","Kassapidaja",{"$nulls":5},{"$f":"IFERROR(COUNTIF(Kolmapäev[[#This Row],[7:00]:[15:00]],\"*\"),\"\")","v":4}]
[null,"Jaan V.",null,"Administraator","Administraator","Administraator","Administraator ","Administraator","Administraator","Administraator",null,null,{"$f":"IFERROR(COUNTIF(Kolmapäev[[#This Row],[7:00]:[15:00]],\"*\"),\"\")","v":7}]
[null,"Peep V.",null,"Administraator","Administraator","Administraator","Administraator ","Administraator","Administraator","Administraator",null,null,{"$f":"IFERROR(COUNTIF(Kolmapäev[[#This Row],[7:00]:[15:00]],\"*\"),\"\")","v":7}]
[null,"Rauno L.",{"$nulls":9},"Haige",{"$f":"IFERROR(COUNTIF(Kolmapäev[[#This Row],[7:00]:[15:00]],\"*\"),\"\")","v":0}]
[null,"Liidia P.",{"$nulls":5},"Kassapidaja","Kassapidaja","Kassapidaja","Kassapidaja",null,{"$f":"IFERROR(COUNTIF(Kolmapäev[[#This Row],[7:00]:[15:00]],\"*\"),\"\")","v":4}]

{"sheet":"Neljapäev","index":3,"n_rows":10,"n_cols":13,"rows_kept":10,"merged":[[1,1,2,1],[1,2,1,10],[1,11,1,12],[2,2,2,10],[2,11,2,12]]}
[null,{"$f":"SHIFT_SCHEDULE_Title","v":"TÖÖGRAAFIK"}]
[null,"NELJAPÄEV","Nädal: ",{"$nulls":8},{"$f":"KUUPÄEV","v":"KUUPÄEV"}]
[null,null,"Osakonna nimi: ",{"$nulls":8},{"$f":"OSAKOND","v":"OSAKOND"}]
[null,"Töötaja nimi","7:00","8:00","9:00","10:00","11:00","12:00","13:00","14:00","15:00","Haige?","KOKKU"]
[null,"Lilli A.","Ülemus","Ülemus","Ülemus","Ülemus","Ülemus","Ülemus","Ülemus","Ülemus","Ülemus",null,{"$f":"IFERROR(COUNTIF(Neljapäev[[#This Row],[7:00]:[15:00]],\"*\"),\"\")","v":9}]
[null,"Georg K.",null,"Kassapidaja","Kassapidaja","Kassapidaja","Kassapidaja",{"$nulls":5},{"$f":"IFERROR(COUNTIF(Neljapäev[[#This Row],[7:00]:[15:00]],\"*\"),\"\")","v":4}]
[null,"Jaan V.",null,"Administraator","Administraator","Administraator","Administraator ","Administraator","Administraator","Administraator",null,null,{"$f":"IFERROR(COUNTIF(Neljapäev[[#This Row],[7:00]:[15:00]],\"*\"),\"\")","v":7}]
[null,"Peep V.",null,"Administraator","Administraator","Administraator","Administraator ","Administraator","Administraator","Administraator",null,null,{"$f":"IFERROR(COUNTIF(Neljapäev[[#This Row],[7:00]:[15:00]],\"*\"),\"\")","v":7}]
[null,"Rauno L.",{"$nulls":9},"Haige",{"$f":"IFERROR(COUNTIF(Neljapäev[[#This Row],[7:00]:[15:00]],\"*\"),\"\")","v":0}]
[null,"Liidia P.",{"$nulls":5},"Kassapidaja","Kassapidaja","Kassapidaja","Kassapidaja",null,{"$f":"IFERROR(COUNTIF(Neljapäev[[#This Row],[7:00]:[15:00]],\"*\"),\"\")","v":4}]

{"sheet":"Reede","index":4,"n_rows":10,"n_cols":13,"rows_kept":10,"merged":[[1,1,2,1],[1,2,1,10],[1,11,1,12],[2,2,2,10],[2,11,2,12]]}
[null,{"$f":"SHIFT_SCHEDULE_Title","v":"TÖÖGRAAFIK"}]
[null,"REEDE","Nädal: ",{"$nulls":8},{"$f":"KUUPÄEV","v":"KUUPÄEV"}]
[null,null,"Osakonna nimi: ",{"$nulls":8},{"$f":"OSAKOND","v":"OSAKOND"}]
[null,"Töötaja nimi","7:00","8:00","9:00","10:00","11:00","12:00","13:00","14:00","15:00","Haige?","KOKKU"]
[null,"Lilli A.","Ülemus","Ülemus","Ülemus","Ülemus","Ülemus","Ülemus","Ülemus","Ülemus","Ülemus",null,{"$f":"IFERROR(COUNTIF(Reede[[#This Row],[7:00]:[15:00]],\"*\"),\"\")","v":9}]
[null,"Georg K.",null,"Kassapidaja","Kassapidaja","Kassapidaja","Kassapidaja",{"$nulls":5},{"$f":"IFERROR(COUNTIF(Reede[[#This Row],[7:00]:[15:00]],\"*\"),\"\")","v":4}]
[null,"Jaan V.",null,"Administraator","Administraator","Administraator","Administraator ","Administraator","Administraator","Administraator",null,null,{"$f":"IFERROR(COUNTIF(Reede[[#This Row],[7:00]:[15:00]],\"*\"),\"\")","v":7}]
[null,"Peep V.",null,"Administraator","Administraator","Administraator","Administraator ","Administraator","Administraator","Administraator",null,null,{"$f":"IFERROR(COUNTIF(Reede[[#This Row],[7:00]:[15:00]],\"*\"),\"\")","v":7}]
[null,"Rauno L.",{"$nulls":9},"Haige",{"$f":"IFERROR(COUNTIF(Reede[[#This Row],[7:00]:[15:00]],\"*\"),\"\")","v":0}]
[null,"Liidia P.",{"$nulls":5},"Kassapidaja","Kassapidaja","Kassapidaja","Kassapidaja",null,{"$f":"IFERROR(COUNTIF(Reede[[#This Row],[7:00]:[15:00]],\"*\"),\"\")","v":4}]

{"sheet":"Laupäev","index":5,"n_rows":10,"n_cols":13,"rows_kept":10,"merged":[[1,1,2,1],[1,2,1,10],[1,11,1,12],[2,2,2,10],[2,11,2,12]]}
[null,{"$f":"SHIFT_SCHEDULE_Title","v":"TÖÖGRAAFIK"}]
[null,"LAUPÄEV","Nädal: ",{"$nulls":8},{"$f":"KUUPÄEV","v":"KUUPÄEV"}]
[null,null,"Osakonna nimi: ",{"$nulls":8},{"$f":"OSAKOND","v":"OSAKOND"}]
[null,"Töötaja nimi","7:00","8:00","9:00","10:00","11:00","12:00","13:00","14:00","15:00","Haige?","KOKKU"]
[null,"Lilli A.","Ülemus","Ülemus","Ülemus","Ülemus","Ülemus","Ülemus","Ülemus","Ülemus","Ülemus",null,{"$f":"IFERROR(COUNTIF(Laupäev[[#This Row],[7:00]:[15:00]],\"*\"),\"\")","v":9}]
[null,"Georg K.",null,"Kassapidaja","Kassapidaja","Kassapidaja","Kassapidaja",{"$nulls":5},{"$f":"IFERROR(COUNTIF(Laupäev[[#This Row],[7:00]:[15:00]],\"*\"),\"\")","v":4}]
[null,"Jaan V.",null,"Administraator","Administraator","Administraator","Administraator ","Administraator","Administraator","Administraator",null,null,{"$f":"IFERROR(COUNTIF(Laupäev[[#This Row],[7:00]:[15:00]],\"*\"),\"\")","v":7}]
[null,"Peep V.",null,"Administraator","Administraator","Administraator","Administraator ","Administraator","Administraator","Administraator",null,null,{"$f":"IFERROR(COUNTIF(Laupäev[[#This Row],[7:00]:[15:00]],\"*\"),\"\")","v":7}]
[null,"Rauno L.",{"$nulls":9},"Haige",{"$f":"IFERROR(COUNTIF(Laupäev[[#This Row],[7:00]:[15:00]],\"*\"),\"\")","v":0}]
[null,"Liidia P.",{"$nulls":5},"Kassapidaja","Kassapidaja","Kassapidaja","Kassapidaja",null,{"$f":"IFERROR(COUNTIF(Laupäev[[#This Row],[7:00]:[15:00]],\"*\"),\"\")","v":4}]

{"sheet":"Pühapäev","index":6,"n_rows":10,"n_cols":13,"rows_kept":10,"merged":[[1,1,2,1],[1,2,1,10],[1,11,1,12],[2,2,2,10],[2,11,2,12]]}
[null,{"$f":"SHIFT_SCHEDULE_Title","v":"TÖÖGRAAFIK"}]
[null,"PÜHAPÄEV","Nädal: ",{"$nulls":8},{"$f":"KUUPÄEV","v":"KUUPÄEV"}]
[null,null,"Osakonna nimi: ",{"$nulls":8},{"$f":"OSAKOND","v":"OSAKOND"}]
[null,"Töötaja nimi","7:00","8:00","9:00","10:00","11:00","12:00","13:00","14:00","15:00","Haige?","KOKKU"]
[null,"Lilli A.","Ülemus","Ülemus","Ülemus","Ülemus","Ülemus","Ülemus","Ülemus","Ülemus","Ülemus",null,{"$f":"IFERROR(COUNTIF(Pühapäev[[#This Row],[7:00]:[15:00]],\"*\"),\"\")","v":9}]
[null,"Georg K.",null,"Kassapidaja","Kassapidaja","Kassapidaja","Kassapidaja",{"$nulls":5},{"$f":"IFERROR(COUNTIF(Pühapäev[[#This Row],[7:00]:[15:00]],\"*\"),\"\")","v":4}]
[null,"Jaan V.",null,"Administraator","Administraator","Administraator","Administraator ","Administraator","Administraator","Administraator",null,null,{"$f":"IFERROR(COUNTIF(Pühapäev[[#This Row],[7:00]:[15:00]],\"*\"),\"\")","v":7}]
[null,"Peep V.",null,"Administraator","Administraator","Administraator","Administraator ","Administraator","Administraator","Administraator",null,null,{"$f":"IFERROR(COUNTIF(Pühapäev[[#This Row],[7:00]:[15:00]],\"*\"),\"\")","v":7}]
[null,"Rauno L.",{"$nulls":9},"Haige",{"$f":"IFERROR(COUNTIF(Pühapäev[[#This Row],[7:00]:[15:00]],\"*\"),\"\")","v":0}]
[null,"Liidia P.",{"$nulls":5},"Kassapidaja","Kassapidaja","Kassapidaja","Kassapidaja",null,{"$f":"IFERROR(COUNTIF(Pühapäev[[#This Row],[7:00]:[15:00]],\"*\"),\"\")","v":4}]